{"text_format":"1","workbook":"xlsx","n_sheets":3,"sheets":["علي محمدسالم","احمد","خالد"],"not_rendered":{"charts":0,"images":0,"macros":1,"external_links":0,"defined_names":0,"comments":0,"pivot_tables":0},"unopened":[],"bounds":{"document_bytes":16777216,"sheet_cells":100000,"rows_first":2000,"rows_last":500,"rows_between":2000,"halvings":0,"cell_chars":16384,"cell_head_chars":4096},"cells_cut":0,"cells_raw":0,"read":"whole","date_system":"1900"}

{"sheet":"علي محمدسالم","index":0,"n_rows":37,"n_cols":13,"rows_kept":37,"cut":false,"hidden":false,"merged":[[0,0,0,12],[3,0,3,6],[3,7,3,11],[2,0,2,1],[2,6,2,7],[2,8,2,12],[1,0,1,2],[1,3,1,5],[1,7,1,8],[1,10,1,12]]}
["حلقات مسجد الجامع"]
["أستمارة متابعة الطالب",null,null,"علي محمد سالم",null,null,null,"لشهر",null,null,"محرم"]
["المستوى",null,null,null,null,null,"حلقة",null,"الامام مالك"]
[null,null,null,null,null,null,null,"الحضور والغياب للصلوات"]
["التاريخ","الحضور","الربط الجديد","مراجعة","مقررالحفظ","التقدير","حفظ متن","الفجر","الظهر","العصر","المغرب","العشاء","ملاحظات"]
["2022-07-08","ح",6,"مراجع",3,"جيدجدا",6,"ح","غ","ح","غ","ح","لاشي"]
[]
[]
[]
[]
[]
[]
[]
[]
[]
[]
[]
[]
[]
[]
[]
[]
[]
[]
[]
[]
[]
[]
[]
[]
[]
[]
[]
[]
[]
[null,{"$f":"COUNTIF(B6:B35,\"ح\")","v":1},null,"ايام الحضوراليومي",null,null,null,{"$f":"COUNTIF(H6:H35,\"ح\")","v":1},{"$f":"COUNTIF(I6:I35,\"ح\")","v":0},1,0,1,"ايام الحضر للصلوات"]
[null,{"$f":"COUNTIF(B6:B35,\"غ\")","v":0},null,"ايام الغياب اليومي",null,null,null,{"$f":"COUNTIF(H6:H35,\"غ\")","v":0},{"$f":"COUNTIF(I6:I35,\"غ\")","v":1},0,1,0,"ايام الغياب للصلوات"]

{"sheet":"احمد","index":1,"n_rows":37,"n_cols":13,"rows_kept":37,"cut":false,"hidden":false,"merged":[[1,10,1,12],[3,7,3,11],[3,0,3,6],[0,0,0,12],[1,0,1,2],[1,3,1,5],[2,0,2,1],[2,6,2,7],[2,8,2,12],[1,7,1,8]]}
["حلقات مسجد الجامع"]
["أستمارة متابعة الطالب",null,null,"احمد",null,null,null,"لشهر",null,null,"محرم"]
["المستوى",null,null,null,null,null,"حلقة",null,"الامام مالك"]
[null,null,null,null,null,null,null,"الحضور والغياب للصلوات"]
["التاريخ","الحضور","الربط الجديد","مراجعة","مقررالحفظ","التقدير","حفظ متن","الفجر","الظهر","العصر","المغرب","العشاء","ملاحظات"]
[]
[]
[]
[]
[]
[]
[]
[]
[]
[]
[]
[]
[]
[]
[]
[]
[]
[]
[]
[]
[]
[]
[]
[]
[]
[]
[]
[]
[]
[]
[null,{"$f":"COUNTIF(B6:B35,\"ح\")","v":0},null,"ايام الحضوراليومي",null,null,null,{"$f":"COUNTIF(H6:H35,\"ح\")","v":0},{"$f":"COUNTIF(I6:I35,\"ح\")","v":0},0,0,0,"ايام الحضر للصلوات"]
[null,{"$f":"COUNTIF(B6:B35,\"غ\")","v":0},null,"ايام الغياب اليومي",null,null,null,{"$f":"COUNTIF(H6:H35,\"غ\")","v":0},{"$f":"COUNTIF(I6:I35,\"غ\")","v":0},0,0,0,"ايام الغياب للصلوات"]

{"sheet":"خالد","index":2,"n_rows":37,"n_cols":13,"rows_kept":37,"cut":false,"hidden":false,"merged":[[3,0,3,6],[3,7,3,11],[0,0,0,12],[1,0,1,2],[1,3,1,5],[1,7,1,8],[1,10,1,12],[2,0,2,1],[2,6,2,7],[2,8,2,12]]}
["حلقات مسجد الجامع"]
["أستمارة متابعة الطالب",null,null,"خالد",null,null,null,"لشهر",null,null,"محرم"]
["المستوى",null,null,null,null,null,"حلقة",null,"الامام مالك"]
[null,null,null,null,null,null,null,"الحضور والغياب للصلوات"]
["التاريخ","الحضور","الربط الجديد","مراجعة","مقررالحفظ","التقدير","حفظ متن","الفجر","الظهر","العصر","المغرب","العشاء","ملاحظات"]
[]
[]
[]
[]
[]
[]
[]
[]
[]
[]
[]
[]
[]
[]
[]
[]
[]
[]
[]
[]
[]
[]
[]
[]
[]
[]
[]
[]
[]
[]
[null,{"$f":"COUNTIF(B6:B35,\"ح\")","v":0},null,"ايام الحضوراليومي",null,null,null,{"$f":"COUNTIF(H6:H35,\"ح\")","v":0},{"$f":"COUNTIF(I6:I35,\"ح\")","v":0},0,0,0,"ايام الحضر للصلوات"]
[null,{"$f":"COUNTIF(B6:B35,\"غ\")","v":0},null,"ايام الغياب اليومي",null,null,null,{"$f":"COUNTIF(H6:H35,\"غ\")","v":0},{"$f":"COUNTIF(I6:I35,\"غ\")","v":0},0,0,0,"ايام الغياب للصلوات"]